bitfinex/quotes_ETHUSD_20240828
["timestamp","ask_amount","ask_price","bid_price","bid_amount"]
[1724859306511,4.01717,2489.4,2488.4,2.3273]
[1724859306667,4.01836,2488.6,2488.5,0.04703097]
[1724859306869,4.01807,2488.8,2488.5,0.04703097]
[1724859307410,0.41236072,2489.4,2488.7,2.4317]
[1724859307411,4.01745,2489.2,2488.7,2.4317]
[1724859307581,4.01713,2489.4,2488.7,2.4317]
[1724859307910,4.01753,2489.1,2488.8,0.04629968]
[1724859308081,4.0173,2489.3,2488.8,0.04629968]
[1724859308262,8.03465,2489.3,2488.7,10.46783]
[1724859308462,4.01646,2489.8,2488.9,0.04620836]
[1724859308463,4.01761,2489.1,2488.9,0.04620836]
[1724859308796,4.01767,2489.0,2488.7,2.4317]
[1724859308992,0.45278629,2489.8,2489.0,0.04612975]
[1724859308993,4.0173,2489.3,2489.0,0.04612975]
[1724859309310,4.0173,2489.3,2488.7,2.4317]
[1724859309311,4.01753,2489.1,2488.7,2.4317]
[1724859309492,4.01777,2489.0,2488.7,2.4317]
[1724859309695,8.036,2488.8,2488.7,2.4317]
[1724859309892,4.01841,2488.6,2488.1,2.4317]
[1724859310098,8.0356,2489.0,2488.4,4.01862]
[1724859310306,4.01864,2488.4,2488.3,2.4317]
[1724859310482,4.01779,2489.0,2487.9,2.4317]
[1724859310483,4.01924,2488.1,2487.9,2.4317]
[1724859310683,4.01924,2488.1,2487.0,2.09807161]
[1724859310684,4.01962,2487.8,2487.3,2.4737]
[1724859310911,4.01938,2488.0,2487.3,2.4737]
[1724859311073,4.01926,2488.1,2487.6,6.49353]
[1724859311409,4.01888,2488.3,2487.7,4.01965]
[1724859311594,4.01922,2488.1,2487.6,6.49353]
[1724859311910,4.01825,2488.7,2488.1,2.2815]
[1724859312111,3.0,2488.8,2488.2,4.01886]
[1724859312310,4.01816,2488.7,2488.2,4.01886]
[1724859312530,4.01793,2488.9,2488.5,2.2815]
[1724859312817,4.01832,2488.6,2488.5,2.2815]
[1724859313112,4.01832,2488.6,2487.3,4.85615156]
[1724859313113,4.01856,2488.5,2487.9,2.2815]
[1724859313676,4.01929,2488.0,2487.9,2.2815]
[1724859313876,4.01929,2488.0,2487.2,4.02047]
[1724859313877,4.01955,2487.9,2487.5,2.2815]
[1724859314072,2.4994,2488.7,2487.6,4.01992]
[1724859314073,4.01924,2488.1,2487.6,4.01992]
[1724859314315,3.0,2488.8,2487.6,8.03975]
[1724859314316,8.03783,2488.3,2487.6,8.03975]
[1724859314613,4.01901,2488.2,2487.7,4.01976]
[1724859314983,4.01931,2488.0,2487.6,0.630142]
[1724859315183,4.01901,2488.2,2487.5,2.2815]
[1724859315419,3.0,2488.5,2488.0,4.01913]
[1724859315571,4.01832,2488.6,2488.1,0.04707881]
[1724859315777,4.01832,2488.6,2487.9,6.2814]
[1724859315778,4.01891,2488.3,2487.9,2.262]
[1724859315999,4.01875,2488.4,2488.0,0.04715748]
[1724859316369,5.01841,2488.6,2488.1,2.2662]
[1724859316581,8.0376,2488.3,2488.2,0.04693028]
[1724859316788,4.01902,2488.2,2487.8,2.4678]
[1724859317017,4.01914,2488.1,2487.9,0.04716628]
[1724859317220,12.05787,2488.0,2487.9,0.04716628]
[1724859317521,4.02071,2487.2,2487.0,2.4678]
[1724859317816,4.02042,2487.3,2487.0,2.4678]
[1724859317817,4.02042,2487.3,2487.1,0.04776415]
[1724859318025,4.02058,2487.2,2487.1,0.04776415]
[1724859318329,8.04116,2487.2,2487.1,0.04776415]
[1724859319649,4.02108,2486.9,2486.6,2.4117]
[1724859320222,4.02046,2487.3,2486.6,2.4117]
[1724859320467,4.02107,2486.9,2486.2,2.4482]
[1724859320606,3.0,2487.2,2486.2,2.4482]
[1724859320607,4.02202,2486.4,2486.2,2.4482]
[1724859320811,8.04401,2486.4,2486.2,2.4482]
[1724859321007,4.02111,2486.9,2486.1,0.1226329]
[1724859321008,6.51131,2486.9,2486.1,0.1226329]
[1724859321319,4.0222,2486.2,2486.1,0.1226329]
[1724859321519,8.0444,2486.2,2486.1,0.1226329]
[1724859321725,4.0222,2486.2,2486.1,0.1226329]
[1724859321931,4.02195,2486.4,2486.1,0.1226329]
[1724859321932,8.04396,2486.4,2486.1,0.1226329]
[1724859322138,4.0211,2486.9,2486.2,2.4482]
[1724859322343,4.0216,2486.6,2486.2,2.4482]
[1724859322654,4.02079,2487.1,2486.2,2.4482]
[1724859322655,4.0218,2486.5,2486.2,2.4482]
[1724859322839,4.02204,2486.3,2486.2,2.4482]
[1724859323007,8.0444,2486.2,2486.1,0.1226329]
[1724859323423,11.0444,2486.2,2486.1,0.1226329]
[1724859323770,4.0222,2486.2,2486.1,0.1226329]
[1724859323978,8.0444,2486.2,2486.1,0.1226329]
[1724859324465,3.0,2486.6,2486.1,0.1226329]
[1724859324676,3.0,2486.5,2486.1,0.1226329]
[1724859324979,4.02165,2486.6,2486.1,0.37809619]
[1724859325128,4.95366606,2487.5,2486.1,0.45854166]
[1724859325129,4.02124,2486.8,2486.1,0.45854166]
[1724859325321,4.02154,2486.7,2486.2,0.28905417]
[1724859325527,4.02164,2486.6,2486.1,0.1226329]
[1724859325885,4.02188,2486.4,2486.1,0.1226329]
[1724859326073,2.49645366,2487.9,2486.1,0.1226329]
[1724859326074,4.0222,2486.2,2486.1,0.1226329]
[1724859326424,4.02217,2486.3,2486.1,0.1226329]
[1724859326775,8.0444,2486.2,2486.1,0.1226329]
[1724859327075,15.0666,2486.2,2486.1,0.1226329]
[1724859327291,11.0444,2486.2,2486.1,0.1226329]
[1724859328158,22.3649435,2486.2,2486.1,0.1226329]
[1724859328361,2.3417,2486.1,2484.7,2.4976]
[1724859328579,4.0243,2485.0,2484.7,2.4976]
[1724859328944,4.02327,2485.6,2484.8,4.15560688]
[1724859329241,4.02263,2486.0,2484.8,4.15560688]
[1724859329242,4.02391,2485.2,2484.8,0.05066831]
[1724859329443,5.3417,2485.9,2484.7,2.4976]
[1724859329772,4.02403,2485.1,2484.9,0.05058943]
[1724859329978,4.02382,2485.2,2484.8,0.05066831]
[1724859330187,4.02408,2485.1,2485.0,0.05051057]
[1724859330382,4.02414,2485.0,2484.9,0.05058943]
[1724859330687,4.02372,2485.3,2484.7,2.4976]
[1724859330934,4.02265,2486.0,2485.3,4.0236]
[1724859331124,4.02296,2485.8,2485.4,2.4976]
[1724859331247,4.02296,2485.8,2484.4,5.65056236]
[1724859331248,4.02191,2486.4,2485.5,0.08046007]
[1724859331448,4.0222,2486.2,2485.7,2.2858]
[1724859331985,0.52224433,2486.5,2485.2,2.2858]
[1724859332200,8.0473,2485.3,2485.2,2.2858]
[1724859332388,4.02244,2486.1,2484.9,2.2858]
[1724859332389,4.02424,2485.0,2484.9,2.2858]
[1724859332591,0.52224433,2485.6,2484.2,2.2858]
[1724859332592,4.02396,2485.2,2484.2,2.2858]
[1724859332797,4.02472,2484.7,2484.2,2.2858]
[1724859333010,4.02512,2484.4,2484.2,2.2858]
[1724859333676,8.05054,2484.3,2484.2,2.2858]
[1724859334014,8.05067,2484.3,2483.8,2.2858]
[1724859334296,4.02527,2484.3,2483.8,2.56813352]
[1724859334502,4.02453,2484.8,2483.6,0.1226329]
[1724859334503,4.02519,2484.4,2483.6,0.1226329]
[1724859334721,4.02464,2484.7,2483.6,0.1226329]
[1724859334722,4.02625,2483.7,2483.6,0.1226329]
[1724859335501,8.0525,2483.7,2483.6,0.1226329]
[1724859335895,4.02625,2483.7,2483.6,0.1226329]
[1724859336102,4.02576,2484.0,2483.6,0.48779641]
[1724859336404,4.0254,2484.3,2483.6,0.36347619]
[1724859336405,4.02573,2484.1,2483.6,0.36347619]
[1724859336607,4.02534,2484.3,2483.7,0.12423822]
[1724859336913,4.02534,2484.3,2483.7,0.81226704]
[1724859337059,4.02534,2484.3,2483.8,2.2858]
[1724859337260,4.02534,2484.3,2483.8,2.40995622]
[1724859337486,4.02354,2485.4,2484.4,2.4211]
[1724859337713,4.02495,2484.5,2484.4,2.4211]
[1724859338026,8.0499,2484.5,2484.4,2.4211]
[1724859338564,4.02418,2485.0,2484.4,2.66321]
[1724859338715,4.02386,2485.2,2484.5,4.65541999]
[1724859338923,4.02258,2486.0,2484.5,4.65541999]
[1724859338924,4.02445,2484.9,2484.5,0.55]
[1724859339068,4.02493,2484.6,2484.4,2.4211]
[1724859339521,4.02449,2484.8,2484.4,2.66321]
[1724859339671,4.02464,2484.7,2484.4,2.4211]
[1724859340019,4.02495,2484.5,2484.4,2.4211]
[1724859340172,4.02514,2484.4,2483.7,2.293]
[1724859340367,4.02537,2484.3,2483.8,0.71488529]
[1724859340574,4.0249,2484.6,2484.0,2.4754]
[1724859340874,4.02434,2484.9,2484.3,4.02515]
[1724859341205,6.52205211,2486.0,2484.4,0.08049393]
[1724859341206,4.02369,2485.3,2484.4,0.08049393]
[1724859341413,2.4295,2486.0,2484.9,4.02415]
[1724859341414,4.02349,2485.5,2484.9,4.02415]
[1724859341718,0.59218142,2486.3,2484.5,4.0249]
[1724859341719,4.02383,2485.2,2484.5,4.0249]
[1724859341894,4.02383,2485.2,2484.6,3.55]
[1724859342073,8.04777,2485.2,2484.7,0.757481]
[1724859342289,4.02321,2485.6,2484.7,0.757481]
[1724859342290,4.02294,2485.8,2484.8,0.63048126]
[1724859342490,4.02326,2485.6,2484.9,4.02415]
[1724859342800,4.02212,2486.3,2484.8,0.55]
[1724859342801,4.02396,2485.2,2484.8,0.55]
[1724859343202,4.02396,2485.2,2484.5,4.02484]
[1724859343203,4.02396,2485.2,2484.6,0.55]
[1724859343417,8.04789,2485.2,2484.7,0.457484]
[1724859343639,4.02393,2485.2,2484.8,0.55]
[1724859343799,4.02356,2485.4,2484.9,2.4081]
[1724859344630,4.02396,2485.2,2484.9,2.4081]
[1724859344791,4.02402,2485.1,2484.9,2.4081]
[1724859345132,4.02396,2485.2,2484.9,2.4081]
[1724859345488,8.04723,2485.4,2485.0,0.12350269]
[1724859345694,4.02322,2485.6,2485.0,0.37666296]
[1724859346058,4.09116841,2486.8,2485.5,4.02321]
[1724859346059,4.02232,2486.2,2485.5,4.02321]
[1724859346321,4.02253,2486.0,2485.7,2.4915]
[1724859346529,4.02229,2486.2,2485.7,2.4915]
[1724859346831,4.02155,2486.6,2485.8,0.75336639]
[1724859347044,4.02131,2486.8,2486.2,2.4915]
[1724859347248,4.02099,2487.0,2486.3,0.08043843]
[1724859347392,4.02092,2487.0,2486.6,2.4373]
[1724859347817,4.02092,2487.0,2486.7,0.12218087]
[1724859348565,4.02032,2487.4,2486.7,0.20260441]
[1724859348697,4.01998,2487.6,2486.9,4.02095]
[1724859349101,4.01998,2487.6,2487.1,2.4936]
[1724859349329,4.02021,2487.5,2487.1,2.4936]
[1724859349636,4.01998,2487.6,2487.2,0.12177194]
[1724859349821,4.02028,2487.4,2487.2,0.12177194]
[1724859350723,4.02001,2487.6,2487.2,0.12177194]
[1724859350934,4.02042,2487.3,2487.2,0.12177194]
[1724859351243,8.04084,2487.3,2487.2,0.12177194]
[1724859351957,4.02042,2487.3,2487.2,0.12177194]
[1724859352160,4.02014,2487.5,2487.2,0.12177194]
[1724859352292,8.04084,2487.3,2487.2,0.12177194]
[1724859352609,4.02099,2487.0,2486.7,2.3798]
[1724859353129,4.02099,2487.0,2486.8,0.12209907]
[1724859353296,4.02062,2487.2,2486.7,2.3798]
[1724859353499,4.02062,2487.2,2486.9,0.12201728]
[1724859353718,4.02062,2487.2,2486.8,0.12209907]
[1724859353961,4.02035,2487.4,2486.9,0.55]
[1724859354122,7.01972,2487.8,2486.9,0.55]
[1724859354123,3.0,2487.8,2487.0,2.3798]
[1724859354447,4.01996,2487.6,2487.1,0.55]
[1724859354748,4.02061,2487.2,2487.1,0.12185371]
[1724859354956,8.04066,2487.4,2487.1,0.67185371]
[1724859355114,4.02029,2487.4,2487.1,0.67185371]
[1724859355607,4.02001,2487.6,2487.1,0.67185371]
[1724859355815,4.02048,2487.3,2487.1,0.67185371]
[1724859356019,4.02041,2487.4,2487.1,0.12185371]
[1724859356435,4.02003,2487.6,2487.2,0.55]
[1724859356631,8.04116,2487.2,2487.1,0.12185371]
[1724859356852,8.04116,2487.2,2487.0,2.3798]
[1724859356853,4.02074,2487.1,2487.0,2.3798]
[1724859357221,8.04148,2487.1,2487.0,2.3798]
[1724859357424,4.02149,2486.7,2486.6,2.4265]
[1724859357617,4.02119,2486.9,2486.6,2.4265]
[1724859358251,4.02081,2487.1,2486.6,2.4265]
[1724859358447,7.0203,2487.4,2486.6,2.4265]
[1724859358662,4.02075,2487.1,2486.6,2.4265]
[1724859358948,4.02106,2487.0,2486.6,2.4265]
[1724859359109,4.02049,2487.3,2486.7,4.65177055]
[1724859359309,4.02049,2487.3,2486.7,4.65172055]
[1724859359511,4.02018,2487.5,2486.9,6.34333]
[1724859359749,15.07665435,2488.6,2486.9,6.34333]
[1724859359750,4.01937,2488.0,2486.9,2.3224]
[1724859359925,4.0209,2487.0,2486.9,2.3224]
[1724859360121,8.0418,2487.0,2486.9,2.3224]
[1724859360543,4.0209,2487.0,2486.9,2.44301654]
[1724859360860,4.02036,2487.4,2486.9,2.68731819]
[1724859361161,4.02068,2487.2,2486.9,2.68731819]
[1724859361375,4.02068,2487.2,2486.9,2.44301654]
[1724859361524,4.02029,2487.4,2487.0,0.63041004]
[1724859361725,8.04008,2487.6,2487.0,5.07918746]
[1724859361966,4.02026,2487.4,2487.0,1.05828746]
[1724859362123,3.0,2488.1,2487.0,0.12053476]
[1724859362324,4.02074,2487.1,2487.0,0.12053476]
[1724859362525,4.02036,2487.4,2487.0,0.12053476]
[1724859362759,4.02058,2487.2,2487.1,0.55]
[1724859363124,0.41195708,2488.0,2487.3,4.02031]
[1724859363327,4.01886,2488.3,2487.7,6.44416]
[1724859363527,1.0,2488.6,2488.1,2.4528]
[1724859363759,1.0,2488.6,2488.1,10.4908]
[1724859363933,1.0,2488.6,2488.2,0.66786131]
[1724859364132,5.01833,2488.6,2488.2,0.66786131]
[1724859364480,1.0,2488.6,2488.2,0.66786131]
[1724859364631,1.0,2488.6,2488.3,0.39242891]
[1724859364831,1.0,2488.6,2488.4,0.66756495]
[1724859365046,4.01848,2488.5,2488.4,0.11756495]
[1724859365336,1.0,2488.6,2488.4,0.66756495]
[1724859365534,1.0,2488.6,2488.5,0.55]
[1724859365750,1.0,2488.6,2488.5,2.8129]
[1724859365975,1.0,2488.6,2488.5,2.93038326]
[1724859366285,1.0,2488.6,2488.5,0.11748326]
[1724859366286,13.05496,2488.6,2488.5,0.11748326]
[1724859366624,8.0376,2488.3,2488.2,2.2629]
[1724859366824,5.01832,2488.6,2486.9,16.33101]
[1724859366825,1.0,2488.6,2487.8,4.01955]
[1724859367059,1.0,2488.6,2488.3,2.2726]
[1724859367226,8.03728,2488.4,2488.3,2.2726]
[1724859367572,1.0,2488.6,2486.0,3.87288312]
[1724859367742,8.03858,2488.0,2487.9,2.2726]
[1724859368078,8.03858,2488.0,2487.2,2.3607]
[1724859368079,4.0203,2487.4,2487.2,2.3607]
[1724859368280,8.04084,2487.3,2487.2,2.3607]
[1724859368578,8.04084,2487.3,2486.5,6.38237]
[1724859368579,4.0208,2487.1,2486.5,6.38237]
[1724859368814,4.02048,2487.3,2486.6,4.02155]
[1724859369185,3.0,2488.0,2487.1,2.3517]
[1724859369417,3.0,2488.4,2487.1,2.3517]
[1724859369602,4.02005,2487.6,2487.1,2.3517]
[1724859369808,7.0192,2488.1,2487.1,2.3517]
[1724859370024,4.02058,2487.2,2487.1,2.3517]
[1724859370207,4.02057,2487.3,2487.1,2.3517]
[1724859370398,4.02058,2487.2,2487.1,2.3517]
[1724859370603,4.01982,2487.7,2486.7,2.4486]
[1724859370836,4.02015,2487.5,2486.7,2.4486]
[1724859371036,4.02107,2486.9,2486.7,2.4486]
[1724859371341,4.01994,2487.6,2486.8,0.08042092]
[1724859371540,4.01945,2487.9,2487.0,2.4317]
[1724859371712,4.01941,2488.0,2487.3,4.02031]
[1724859371909,5.01843,2488.6,2487.9,2.4317]
[1724859372107,4.01875,2488.4,2488.0,1.19513]
[1724859372337,4.01911,2488.2,2488.0,0.55]
[1724859372694,4.01869,2488.4,2488.0,0.55]
[1724859372892,1.0,2488.6,2488.0,0.9285466]
[1724859373090,1.0,2488.6,2488.3,2.261]
[1724859373344,1.0,2488.6,2488.4,0.63036435]
[1724859373490,1.0,2488.6,2488.5,6.73101643]
[1724859373690,1.0,2488.6,2488.5,6.99188]
[1724859373931,1.0,2488.6,2488.5,2.9734]
[1724859375225,5.01832,2488.6,2488.5,2.4234]
[1724859375649,9.03664,2488.6,2488.5,0.11624273]
[1724859375800,1.0,2488.6,2488.5,0.11624273]
[1724859376000,1.0,2488.6,2488.2,4.01895]
[1724859376207,1.0,2488.6,2488.3,0.66620369]
[1724859376415,1.0,2488.6,2488.3,4.68488369]
[1724859376603,1.0,2488.6,2488.3,4.7652422]
[1724859376954,1.0,2488.6,2488.5,6.49118]
[1724859377155,1.0,2488.6,2488.5,12.26565015]
[1724859377306,1.0,2488.6,2488.5,8.28285553]
[1724859377741,1.0,2488.6,2488.5,12.30133553]
[1724859378560,4.01644,2489.8,2489.2,2.4881]
[1724859378713,4.01666,2489.7,2489.3,0.55]
[1724859378911,4.01606,2490.0,2489.4,0.08033059]
[1724859379218,4.01606,2490.0,2489.3,1.37093605]
[1724859379219,4.01636,2489.9,2489.5,0.55]
[1724859379424,4.01634,2489.9,2489.6,0.11514218]
[1724859379823,4.01599,2490.1,2489.7,0.11506057]
[1724859380027,6.4071,2490.5,2489.8,3.0381]
[1724859380028,4.01563,2490.3,2489.8,3.0381]
[1724859380371,4.01534,2490.5,2489.9,0.19521305]
[1724859380519,4.01534,2490.5,2490.0,0.55]
[1724859380718,4.01501,2490.7,2490.1,0.08030789]
[1724859380954,4.0147,2490.9,2490.2,0.55]
[1724859381264,4.014,2491.3,2490.4,2.4881]
[1724859381265,4.01433,2491.1,2490.4,2.4881]
[1724859381565,0.46769208,2491.7,2490.3,0.19487175]
[1724859381566,4.01336,2491.7,2490.8,2.2744]
[1724859381747,0.46769208,2492.0,2491.3,4.01387]
[1724859381748,4.01294,2492.0,2491.3,4.01387]
[1724859381916,4.01217,2492.5,2491.5,2.2744]
[1724859382120,0.4896888,2492.9,2491.4,0.628827]
[1724859382121,4.01186,2492.7,2492.1,2.2744]
[1724859382320,4.01173,2492.7,2492.2,0.08023718]
[1724859382628,4.01235,2492.3,2492.2,0.11211822]
[1724859383016,4.01278,2492.1,2491.6,2.4691]
[1724859383213,4.01222,2492.4,2491.7,0.66252551]
[1724859383412,4.01305,2491.9,2491.7,0.66252551]
[1724859384063,4.01271,2492.1,2491.7,0.66252551]
[1724859384230,4.01238,2492.3,2491.7,0.66252551]
[1724859384414,4.01211,2492.5,2491.7,0.66252551]
[1724859384415,4.01221,2492.4,2491.7,4.67583551]
[1724859385061,4.01246,2492.3,2491.7,0.66252551]
[1724859385265,4.0116,2492.8,2492.0,4.01283]
[1724859385444,0.41984993,2493.7,2492.3,2.4835]
[1724859385649,2.4786,2494.7,2492.1,0.66219966]
[1724859385650,2.4786,2494.7,2493.1,2.4835]
[1724859385651,4.1330329,2493.6,2493.1,2.4835]
[1724859385957,0.1226329,2493.6,2493.4,4.01045]
[1724859386171,0.1226329,2493.6,2493.2,0.11130413]
[1724859386378,0.1226329,2493.6,2493.1,2.4835]
[1724859386379,4.0109,2493.2,2493.1,2.4835]
[1724859386937,4.01094,2493.2,2492.6,2.2601]
[1724859387243,4.01046,2493.5,2492.7,0.55]
[1724859387567,0.1226329,2493.6,2492.7,0.55]
[1724859387568,4.1330429,2493.6,2492.8,0.08022015]
[1724859387717,4.1330429,2493.6,2493.0,2.3879]
[1724859387718,0.1226329,2493.6,2493.0,2.3879]
[1724859388146,8.02202,2493.2,2493.1,0.55]
[1724859388466,4.1329529,2493.6,2492.3,2.3879]
[1724859388467,4.01107,2493.1,2492.3,2.3879]
[1724859388636,4.01124,2493.0,2492.4,4.56208]
[1724859388819,4.0114,2492.9,2492.4,0.55]
[1724859389019,4.01107,2493.1,2492.5,0.08022408]
[1724859389331,4.01149,2492.9,2492.6,0.55]
[1724859389529,4.01149,2492.9,2492.4,0.55]
[1724859389733,4.01157,2492.8,2492.4,0.55]
[1724859389943,8.02302,2492.9,2492.4,0.55]
[1724859390262,3.0,2493.5,2492.4,0.55]
[1724859390263,7.01056,2493.5,2492.8,4.01153]
[1724859390576,4.01104,2493.2,2492.9,0.65990056]
[1724859390724,4.01088,2493.3,2492.9,0.65990056]
[1724859390925,4.01091,2493.2,2492.9,0.65990056]
[1724859391135,4.01123,2493.0,2492.9,0.65990056]
[1724859391359,4.01119,2493.1,2492.9,0.65990056]
[1724859392085,4.0108,2493.3,2492.9,0.65990056]
[1724859392252,4.01049,2493.5,2493.0,0.08021144]
[1724859392455,4.01049,2493.5,2493.1,0.65685889]
[1724859392678,4.01075,2493.3,2493.1,0.65685889]
[1724859392980,0.1226329,2493.6,2493.1,0.10685889]
[1724859393188,8.0218,2493.2,2493.1,0.10685889]
[1724859393396,4.01158,2492.8,2492.6,2.4327]
[1724859393578,4.01171,2492.7,2492.6,2.4327]
[1724859393743,4.01155,2492.8,2492.7,0.10717817]
[1724859393948,4.01171,2492.7,2492.6,0.10739823]
[1724859394175,4.01171,2492.7,2492.1,2.2852]
[1724859394480,4.01114,2493.1,2492.5,2.2852]
[1724859394680,4.01142,2492.9,2492.5,2.2852]
[1724859395039,4.01114,2493.1,2492.6,0.10749278]
[1724859395188,4.01114,2493.1,2492.6,0.18771888]
[1724859395503,4.01056,2493.5,2492.8,2.2891]
[1724859395792,4.01044,2493.5,2493.0,4.01122]
[1724859395945,8.0213,2493.4,2493.1,0.55]
[1724859396149,4.0109,2493.2,2493.1,0.10709209]
[1724859396373,12.0327,2493.2,2493.1,0.10709209]
[1724859396689,4.0106,2493.4,2492.8,4.01154]
[1724859396847,4.01085,2493.3,2492.9,0.48136891]
[1724859397195,0.1226329,2493.6,2493.3,4.01073]
[1724859397484,0.1226329,2493.6,2493.4,0.73282111]
[1724859397783,0.1226329,2493.6,2493.4,4.74330111]
[1724859397947,0.1226329,2493.6,2493.5,6.48932]
[1724859398150,0.1226329,2493.6,2493.5,3.13144018]
[1724859398688,8.1431529,2493.6,2493.5,0.10254018]
[1724859398945,12.1534129,2493.6,2493.5,0.10254018]
[1724859399103,12.1534129,2493.6,2492.8,2.4789]
[1724859399104,4.01136,2493.0,2492.8,2.4789]
[1724859399447,4.01076,2493.3,2492.8,2.4789]
[1724859399606,4.01048,2493.5,2492.9,0.1026952]
[1724859400132,0.1226329,2493.6,2493.0,4.01122]
[1724859400343,0.1226329,2493.6,2493.1,4.01101]
[1724859400528,0.1226329,2493.6,2493.2,0.55]
[1724859400835,4.01042,2493.5,2493.2,0.55]
[1724859401010,4.01058,2493.4,2493.3,0.10236967]
[1724859401193,8.02116,2493.4,2493.3,0.10236967]
[1724859401390,12.03174,2493.4,2493.3,0.10236967]
[1724859401590,4.01146,2492.9,2492.5,2.4789]
[1724859401848,4.01166,2492.8,2492.5,2.4789]
[1724859401994,0.1226329,2493.6,2492.6,0.10293942]
[1724859402194,4.01165,2492.8,2492.3,2.4789]
[1724859402404,7.01099,2493.2,2492.7,0.10285801]
[1724859402620,7.01097,2493.2,2492.3,6.49116]
[1724859402814,4.01134,2493.0,2492.3,6.49116]
[1724859403018,4.01134,2493.0,2492.4,0.55]
[1724859403214,4.0115,2492.9,2492.5,0.10302084]
[1724859403647,7.01097,2493.2,2492.6,0.10293942]
[1724859403843,4.01068,2493.4,2492.8,2.3283]
[1724859404117,0.1226329,2493.6,2492.9,0.1026952]
[1724859404118,4.1329629,2493.6,2492.9,0.1026952]
[1724859404368,4.46948003,2493.5,2492.9,0.1026952]
[1724859404523,4.01232,2492.4,2492.0,2.3283]
[1724859404720,8.02465,2492.4,2492.0,2.3283]
[1724859404925,8.02391,2492.6,2492.1,0.10383077]
[1724859405222,4.01155,2492.8,2492.2,4.01241]
[1724859405437,4.01155,2492.8,2492.3,0.10367417]
[1724859405764,4.01201,2492.6,2492.0,6.34112]
[1724859405985,8.02406,2492.5,2492.4,0.10359274]
[1724859406134,4.01297,2492.0,2491.6,2.3818]
[1724859406320,4.01163,2492.8,2491.6,2.3818]
[1724859406321,4.01322,2491.8,2491.6,2.3818]
[1724859406522,7.01227,2492.4,2491.0,2.3818]
[1724859406523,4.01358,2491.6,2491.0,2.3818]
[1724859406758,4.01327,2491.8,2491.2,4.01412]
[1724859406985,4.01382,2491.4,2491.0,2.3818]
[1724859407274,4.01487,2490.8,2490.4,2.2669]
[1724859408064,8.0291,2491.0,2490.4,2.34719549]
[1724859408277,3.0,2491.3,2490.7,4.01481]
[1724859408560,4.014,2491.3,2490.8,0.08028599]
[1724859408780,3.0,2491.5,2490.8,0.08028599]
[1724859408781,3.0,2491.5,2490.9,2.2833]
[1724859408966,4.01322,2491.8,2491.1,4.01427]
[1724859409266,4.01285,2492.0,2491.1,4.01427]
[1724859409434,4.01285,2492.0,2491.2,0.63026185]
[1724859409641,4.01247,2492.3,2491.6,2.2833]
[1724859409948,4.01333,2491.7,2491.3,0.46445319]
[1724859410177,4.01301,2491.9,2491.4,0.63026582]
[1724859410497,4.0127,2492.1,2491.4,4.97383114]
[1724859410697,4.01343,2491.7,2491.4,0.63026582]
[1724859411009,4.01343,2491.7,2491.4,0.55]
[1724859411165,4.01343,2491.7,2491.3,0.55]
[1724859411370,4.0138,2491.4,2491.2,2.2833]
[1724859411764,4.01349,2491.6,2491.2,2.2833]
[1724859412255,4.01271,2492.1,2490.8,2.3638]
[1724859412256,4.01396,2491.3,2490.8,2.3638]
[1724859413108,7.01337,2491.7,2490.4,2.3638]
[1724859413109,4.01519,2490.6,2490.4,2.3638]
[1724859413289,4.01482,2490.8,2490.4,2.3638]
[1724859413844,4.01438,2491.1,2490.4,6.37921]
[1724859413983,4.01438,2491.1,2490.4,7.017131]
[1724859414166,4.01438,2491.1,2490.4,3.001721]
[1724859414167,4.01461,2490.9,2490.4,3.001721]
[1724859414386,3.0,2491.3,2490.4,2.3638]
[1724859414387,4.01494,2490.7,2490.4,2.3638]
[1724859414568,4.01525,2490.5,2490.1,2.3638]
[1724859414912,4.01592,2490.1,2489.6,2.4238]
[1724859415592,8.03194,2490.1,2489.6,2.4238]
[1724859415793,4.01611,2490.0,2489.6,2.4238]
[1724859415995,4.01592,2490.1,2489.6,2.4238]
[1724859416297,8.03196,2490.1,2489.6,2.4238]
[1724859416601,3.0,2490.4,2489.8,4.01638]
[1724859416799,2.2752,2491.0,2489.7,0.08032446]
[1724859416800,4.01578,2490.2,2489.7,0.08032446]
[1724859416958,4.01578,2490.2,2489.6,2.4238]
[1724859416959,8.03165,2490.2,2489.6,2.4238]
[1724859417305,8.03165,2490.2,2489.7,0.24238]
[1724859417306,4.01592,2490.1,2489.7,0.24238]
[1724859417471,4.01578,2490.2,2489.7,0.24238]
[1724859417684,4.01549,2490.4,2489.8,4.01636]
[1724859417921,4.01549,2490.4,2489.9,0.975874]
[1724859418084,4.01562,2490.3,2489.9,0.975874]
[1724859418287,8.03104,2490.4,2489.9,0.55]
[1724859418474,4.0156,2490.3,2489.9,0.55]
[1724859418674,4.01574,2490.2,2489.9,0.55]
[1724859418874,4.01549,2490.4,2489.9,0.55]
[1724859419075,4.01562,2490.3,2489.7,0.32269733]
[1724859419276,4.01549,2490.4,2489.6,6.44038]
[1724859419277,4.01633,2489.9,2489.6,2.4238]
[1724859420203,7.01567,2490.3,2489.6,2.4238]
[1724859420410,7.01567,2490.3,2489.7,0.24238]
[1724859420620,4.01534,2490.5,2490.0,4.01594]
[1724859420936,4.01499,2490.7,2490.2,6.47201]
[1724859421229,4.01511,2490.6,2490.2,2.4563]
[1724859421438,12.04623,2490.4,2490.3,0.09811408]
[1724859421583,8.03082,2490.4,2490.3,0.09811408]
[1724859421783,8.03082,2490.4,2490.0,7.3]
[1724859421784,4.01541,2490.4,2490.0,7.3]
[1724859422092,0.42039626,2490.6,2490.1,0.09827722]
[1724859422293,4.01574,2490.2,2490.1,0.09827722]